Cogmind - Beta 14 @@@ ROGUE MODE // 2024.10.16 @ 23:03:05 Player: Pitt Result: Destroyed by H-61 Shepherd with Heavy Assault Cannon Performance ------------- Evolutions (2) 1000 Regions Visited (3) 600 Robots Destroyed (49) 245 Value Destroyed (1227) 1227 Prototype IDs (0) 0 Alien Tech Used (0) 0 Bonus (0) 0 TOTAL SCORE: 3072 Bonus ------- None Cogmind --------- Core Integrity 0/550 Matter 300/300 Energy 85/100 System Corruption 0% Temperature Cool (9) Movement Core (50) Location -8/Materials Parts ------- > --- POWER (1) -------- (None) > --- PROPULSION (3) --- (None) > --- UTILITY (5) ------ Improved Terrain Scan Processor > --- WEAPON (2) ------- (None) > --- INVENTORY (5) ---- Light Treads Large Storage Unit Structural Scanner Heavy Assault Rifle Mining Laser Peak State ------------ > --- POWER ------------ Light Angular Momentum Engine > --- PROPULSION ------- Light Treads Improved Treads Improved Treads > --- UTILITY ---------- Large Storage Unit Improved Sensor Array Improved Terrain Scan Processor Hardened Medium Armor Plating Hacking Suite > --- WEAPON ----------- Great Maul Great Maul > --- INVENTORY -------- Improved Ion Engine Light Treads Advanced Heat Sink Medium Storage Unit Large Storage Unit Weight Redist. System Structural Scanner Improved Terrain Scanner Particle Charger Heavy EM Pulse Gun Particle Cannon Heavy Assault Rifle Rocket Launcher Rocket Launcher Mining Laser [Rating: 32] Favorites ----------- Power Light Ion Engine Engine Light Ion Engine Propulsion Wheel Treads Light Treads Leg Aluminum Leg Wheel Wheel Utility Improved Terrain Scan Processor Device Improved Terrain Scanner Storage Small Storage Unit Processor Improved Terrain Scan Processor Hackware Hacking Suite Protection Light Armor Plating Weapon Great Maul Energy Gun Medium Laser Ballistic Gun Assault Rifle Launcher Grenade Launcher Special Weapon Mining Laser Impact Weapon Great Maul Build | -11 -10 -9 -8 ------- Run | Yrd Mat Mat Mat Slots Evolved 4 | . . 2 2 Power . | . . . . Propulsion 1 | . . . 1 Utility 3 | . . 2 1 Weapon . | . . . . Parts Attached 52 | 9 13 19 11 Power 4 | 1 . 2 1 Engine 4 | 1 . 2 1 Core . | . . . . Reactor . | . . . . Propulsion 12 | 4 1 3 4 Treads 7 | . . 3 4 Leg 2 | 2 . . . Wheel 3 | 2 1 . . Hover . | . . . . Flight . | . . . . Utility 21 | 2 4 9 6 Device 11 | 1 4 3 3 Storage 3 | 1 . 2 . Processor 2 | . . 2 . Hackware 1 | . . . 1 Protection 4 | . . 2 2 Artifact . | . . . . Weapon 15 | 2 8 5 . Energy Gun 6 | 2 3 1 . Energy Cannon . | . . . . Ballistic Gun 1 | . 1 . . Ballistic Cannon . | . . . . Launcher 1 | . 1 . . Special Weapon 3 | . 3 . . Impact Weapon 4 | . . 4 . Slashing Weapon . | . . . . Piercing Weapon . | . . . . Special Melee Weapon . | . . . . Unidentified Prototypes . | . . . . Parts Lost 12 | . . 5 7 Power 1 | . . . 1 Propulsion 4 | . . 2 2 Utility 6 | . . 3 3 Weapon 1 | . . . 1 Highest Loss Streak 6 | . . 1 6 To Critical Strikes . | . . . . Average Slot Usage (%) 96 | . 100 93 98 Engine 11 | . 14 11 8 Treads 12 | . . 16 25 Wheel 11 | . 28 4 . Device 13 | . 14 12 13 Storage 11 | . 14 11 9 Processor 6 | . . 11 9 Hackware 1 | . . . 9 Protection 2 | . . 4 4 Energy Gun 9 | . 25 . . Impact Weapon 13 | . . 21 18 Peak Build Rating 32 | 9 9 20 32 Average Rating 15 | 6 8 17 26 On Entrance 8 | . 9 8 18 Naked Turns . | . . . . Heaviest Build 46 | 13 14 46 46 Greatest Support 66 | 20 20 43 66 Greatest Overweight (x) 2 | . . 2 1 Average Overweight (x) . | . . . . Largest Inventory Capacity 15 | 8 8 15 15 Average Capacity 11 | 7 8 12 14 Most Carried 15 | 6 8 15 15 Average Carried 9 | 3 7 10 14 Final Capacity 15 | 8 8 15 5 Final Carried 15 | 6 7 15 5 Class Distribution -------------------- 68% | Mutant 31% | Scavenger-Mutant Dominant Class ---------------- Mutant | -10/Materials Mutant | -9/Materials Scavenger-Mutant | -8/Materials Resources | -11 -10 -9 -8 ----------- Run | Yrd Mat Mat Mat Matter Collected 700 | 290 115 205 90 Remotely . | . . . . Salvage Created 1512 | 236 298 641 337 Parts 86 | 19 29 33 5 Haulers Intercepted 2 | . 1 . 1 Recyclers Shooed . | . . . . Parts Field Recycled . | . . . . Retrieved Matter . | . . . . Parts Self-Destructed . | . . . . Prevented . | . . . . Kills | -11 -10 -9 -8 ------- Run | Yrd Mat Mat Mat Combat Hostiles Destroyed 28 | . 6 16 6 Melee 11 | . . 8 3 Guns 4 | . 3 1 . AOE 4 | . 3 . 1 Classes Destroyed 12 | 3 5 4 . Worker 2 | 1 . 1 . Builder 3 | . 3 . . Tunneler 6 | 6 . . . Hauler 2 | . 1 . 1 Recycler 1 | 1 . . . Mechanic 1 | . . 1 . Operator 1 | . . 1 . Watcher 5 | . 2 2 1 Swarmer 6 | . 3 3 . Grunt 15 | . 3 7 5 Brawler 1 | . . 1 . Sentry 6 | . . 5 1 Best Kill Streak 4 | 4 3 3 3 Combat Bots Only 3 | . 3 3 2 Max Kills in Single Turn 3 | 1 3 1 1 Gunslinging . | . . . . Exploded 3 | . 3 . 1 Melee 1 | . . 1 1 Uniques/NPCs Destroyed . | . . . . Combat | -11 -10 -9 -8 -------- Run | Yrd Mat Mat Mat Hostile Shots Fired 222 | . 23 100 99 Missed 58 | . 3 27 28 Damage Taken 2652 | . 227 864 1561 Core 805 | . 40 176 589 Absorbed by Shields . | . . . . Regen/Repaired (Parts) 318 | . 20 105 193 Core Remaining (%) 80 | 100 84 56 . Volleys Fired 60 | 15 32 13 . Largest 2 | 2 2 1 . Hottest 100 | 100 100 45 . Shots Fired 101 | 30 58 13 . Gun 95 | 30 52 13 . Cannon . | . . . . Launcher 1 | . 1 . . Special 5 | . 5 . . Kinetic . | . . . . Thermal 87 | 30 57 . . Explosive 1 | . 1 . . Electromagnetic 13 | . . 13 . Robot Hit Streak 14 | 4 14 5 . Robot Miss Streak 3 | 2 3 3 . Penetration Max . | . . . . Secondary Targets . | . . . . Shots Hit Robots 129 | 18 34 52 25 Core Hits 42 | 9 18 12 3 Critical Kills 3 | . . 3 . Critical Parts Destroyed 9 | . . 6 3 Critical Strikes 15 | 1 2 9 3 Burn 3 | 1 2 . . Smash 12 | . . 9 3 Melee Attacks 90 | . . 59 31 Impact 90 | . . 59 31 Slashing . | . . . . Piercing . | . . . . Sneak Attacks 7 | . . 3 4 Combat Hostiles 1 | . . . 1 Follow-up Attacks 10 | . . 6 4 Damage Inflicted 4298 | 214 544 2045 1495 Guns 779 | 214 441 124 . Cannons . | . . . . Explosions 444 | . 103 . 341 Melee 3075 | . . 1921 1154 Ramming . | . . . . Kinetic . | . . . . Thermal 655 | 214 441 . . Explosive 444 | . 103 . 341 Electromagnetic 124 | . . 124 . Impact 3075 | . . 1921 1154 Slashing . | . . . . Piercing . | . . . . Highest Corruption 1 | . . 1 . Average Corruption 1 | . . 1 . Corruption Purged . | . . . . Corruption Blocked . | . . . . Effects 7 | . . 7 . Message Errors 3 | . . 3 . Heat Flow Errors 1 | . . 1 . Energy Discharges 2 | . . 2 . Data Loss (major) 1 | . . 1 . Overload Shots . | . . . . Overflow Damage 835 | . . 413 422 Projectiles . | . . . . Explosions 63 | . . . 63 Melee 772 | . . 413 359 Knockbacks 11 | . . 9 2 Impact 11 | . . 9 2 Kinetic . | . . . . Secondary . | . . . . Self-Inflicted Damage 213 | . . . 213 Shots 3 | . . . 3 Rammed . | . . . . Targets Rammed . | . . . . Kicked . | . . . . Crushed . | . . . . Highest Temperature 317 | 117 317 118 10 Average Temperature 77 | 53 95 30 10 Received Heat Transfer 798 | . 105 270 423 Siege Activations . | . . . . Robots Corrupted 12 | . . 9 3 Combat Hostiles 9 | . . 7 2 Parts Fried 16 | . . 10 6 Impact Corruptions 30 | . . 18 12 Robots Melted . | . . . . Combat Hostiles . | . . . . Parts Melted 4 | 1 3 . . Heat Transferred 2146 | 703 1443 . . Parts Sabotaged . | . . . . Parts Stolen . | . . . . Parts Stripped . | . . . . Power Chain Reactions . | . . . . Alert | -11 -10 -9 -8 ------- Run | Yrd Mat Mat Mat Peak Influence 344 | 40 168 344 201 Initial 70 | . 26 70 . Average 99 | 21 58 153 63 Maximum Alert Level 1 | . . 1 1 Low Security (%) 86 | 100 100 72 95 Level 1 13 | . . 27 4 Level 2 . | . . . . Level 3 . | . . . . Level 4 . | . . . . Level 5 . | . . . . High Security . | . . . . Max Security . | . . . . Squads Dispatched 3 | . . 1 2 Investigation 2 | . . 1 1 Extermination . | . . . . Reinforcement 1 | . . . 1 Assault . | . . . . Garrison . | . . . . Intercept . | . . . . Searches Triggered . | . . . . Construction Impeded . | . . . . Haulers Reinforced . | . . . . Active Scanning Responses . | . . . . Cargo Convoy Interrupts . | . . . . Stealth | -11 -10 -9 -8 --------- Run | Yrd Mat Mat Mat Distress Signals 2 | . . 1 1 Communications Jammed . | . . . . Distress Signals . | . . . . Times Spotted 44 | . 11 19 14 Peak Tracking Total 7 | . 3 4 7 Tactical Retreats 3 | . . 2 1 Traps | -11 -10 -9 -8 ------- Run | Yrd Mat Mat Mat Traps Triggered 2 | . . 1 1 Indirectly . | . . . . Trap Hack Attempts . | . . . . Triggered . | . . . . Disarmed . | . . . . Reprogrammed . | . . . . Reused . | . . . . Traps Extracted . | . . . . Installed . | . . . . Triggered . | . . . . Machines | -11 -10 -9 -8 ---------- Run | Yrd Mat Mat Mat Machines Disabled 7 | . . . 7 Max in Single Turn 4 | . . . 4 Machines Repaired . | . . . . Machines Dismantled . | . . . . Machines Sabotaged . | . . . . Overloaded Fab Kills . | . . . . Hacking | -11 -10 -9 -8 --------- Run | Yrd Mat Mat Mat Machines Accessed 17 | . 7 9 1 Terminals 13 | . 6 7 . Fabricators . | . . . . Repair Stations 3 | . 1 1 1 Recycling Units 1 | . . 1 . Scanalyzers . | . . . . Garrison Access . | . . . . Total Hacks 61 | . 25 32 4 Successful 36 | . 16 16 4 Failed 25 | . 9 16 . Catastrophic 6 | . 2 4 . Database Lockouts . | . . . . Manual 35 | . 15 20 . Terminals 47 | . 21 26 . Fabricators . | . . . . Repair Stations 11 | . 4 3 4 Recycling Units 3 | . . 3 . Scanalyzers . | . . . . Garrison Access . | . . . . Terminal Hacks 13 | . 8 5 . Emergency Access Points 1 | . 1 . . Terminal Index 2 | . 1 1 . Repair Station Index 1 | . 1 . . Alert Level 4 | . 2 2 . Unreport Threat 1 | . . 1 . Locate Traps 1 | . 1 . . Transport Status 1 | . . 1 . Zone Layout 2 | . 2 . . Fabricator Hacks . | . . . . Repair Station Hacks 9 | . 3 2 4 Scan Component 5 | . 2 1 2 Repair 4 | . 1 1 2 Recycling Unit Hacks 2 | . . 2 . Report Inventory 1 | . . 1 . Retrieve Components 1 | . . 1 . Scanalyzer . | . . . . Garrison Access Hacks . | . . . . Unauthorized Hacks 12 | . 5 7 . Terminals 11 | . 5 6 . Track 3 | . 1 2 . Assimilate 2 | . 1 1 . Botnet 3 | . 2 1 . Operators 3 | . 1 2 . Fabricators . | . . . . Repair Stations . | . . . . Recycling Units 1 | . . 1 . Mask 1 | . . 1 . Scanalyzers . | . . . . Garrison Access . | . . . . Data Cores Recovered 1 | . . 1 . Used . | . . . . Hacking Detections 17 | . 7 9 1 Full Trace Events 1 | . . 1 . Feedback Events 1 | . . 1 . Corruption 1 | . . 1 . Feedback Blocked . | . . . . Robot Schematics Acquired . | . . . . Robots Built . | . . . . Authchips . | . . . . Time . | . . . . Total Robot Build Rating . | . . . . Part Schematics Acquired . | . . . . Parts Built . | . . . . Authchips . | . . . . Time . | . . . . Total Part Build Rating . | . . . . Parts Repaired 4 | . 1 1 2 Time 128 | . 38 26 64 Parts Recycled . | . . . . Recycled Matter . | . . . . Retrieved Matter . | . . . . Retrieved Components 10 | . . 10 . Parts Scanalyzed . | . . . . Part Schematics Acquired . | . . . . Parts Damaged . | . . . . Bothacking | -11 -10 -9 -8 ------------ Run | Yrd Mat Mat Mat Used RIF Installer . | . . . . Robots Hacked . | . . . . Non-combat . | . . . . Combat . | . . . . Robot Hacks Applied . | . . . . Relay Couplers Released . | . . . . Fabnet Peak Effective % . | . . . . Robots Rewired . | . . . . Allies Hacked . | . . . . Hacks Repelled . | . . . . Allies | -11 -10 -9 -8 -------- Run | Yrd Mat Mat Mat Total Allies 1 | . 1 . . Largest Group 1 | . 1 1 . Highest-Rated Group 10 | . 10 10 . Highest-Rated Ally 10 | . 10 10 . Total Orders . | . . . . Ally Attacks . | . . . . Total Damage . | . . . . Kills . | . . . . Allies Corrupted . | . . . . Allies Melted . | . . . . Intel | -11 -10 -9 -8 ------- Run | Yrd Mat Mat Mat Robot Analysis Total . | . . . . Derelict Logs Recovered . | . . . . Drone Launches . | . . . . Drone Recoveries . | . . . . Exploration | -11 -10 -9 -8 ------------- Run | Yrd Mat Mat Mat Turns Passed 3678 | 267 1144 1658 609 Spaces Moved 1072 | 162 323 409 178 Core 8 | 3 . . 5 Treads 474 | . . 301 173 Legs 137 | 137 . . . Wheels 453 | 22 323 108 . Hover . | . . . . Flight . | . . . . Fastest Speed 50 | 50 80 80 50 Average Speed 127 | 113 80 156 161 Slowest Speed 320 | 120 80 320 240 Overloaded Moves . | . . . . Propulsion Burnouts . | . . . . Robots Hopped . | . . . . Cave-ins Triggered . | . . . . Exploration Rate (%) 26 | 5 47 34 21 Regions Visited 3 Branch Regions . Pre-discovered Areas . | . . . . Known Exits Taken . | . . . . Unknown Exits Taken 3 | 1 1 1 . Scrap Searched . | . . . . Spaces Dug 5 | . 5 . . Terrain Destroyed 34 | . 17 . 17 Melee . | . . . . Projectile 5 | . 5 . . AOE 29 | . 12 . 17 Terrain Rammed . | . . . . Walls Destroyed . | . . . . Machines Disabled . | . . . . Actions | -11 -10 -9 -8 --------- Run | Yrd Mat Mat Mat Total 3104 | 212 1137 1306 449 Wait 1787 | 16 758 797 216 Move 1069 | 161 322 408 178 Hop . | . . . . Pick Up 34 | 9 6 11 8 Fast Attach 12 | 6 1 4 1 Attach 12 | 1 1 6 4 Detach 5 | . 1 4 . Swap 28 | 2 11 9 6 Drop 21 | 2 5 3 11 Fire 60 | 15 32 13 . Melee 76 | . . 51 25 Ram . | . . . . Kick . | . . . . Crush . | . . . . Escape Stasis . | . . . . Rewire . | . . . . Trap . | . . . . Miscellaneous . | . . . . Route ------- -11/Scrapyard -10/Materials (discovered 2 exits: *Mat / [*Min]) -9/Materials -8/Materials History --------- Turn | Location | Event 6 | -11/Scrapyard | Discovered new exit (range 16) 268 | -11/Scrapyard | Entered Materials 322 | -10/Materials | Build established: Mutant 1041 | -10/Materials | Discovered new exit (range 9) 1279 | -10/Materials | Discovered new exit (range 10) 1343 | -10/Materials | Repaired Imp. Terrain Scanner 1412 | -10/Materials | Entered another Materials area 1412 | -9/Materials | Accompanied by 1 ally 1412 | -9/Materials | Evolved 2 slots: Utility x2 1979 | -9/Materials | Build established: Scavenger-Mutant 2258 | -9/Materials | Repaired Lgt. Treads 2571 | -9/Materials | Build established: Mutant 3023 | -9/Materials | Discovered new exit (range 16) 3070 | -9/Materials | Entered another Materials area 3070 | -8/Materials | Evolved 2 slots: Propulsion x1, Utility x1 3430 | -8/Materials | Build established: Scavenger-Mutant 3634 | -8/Materials | Repaired Imp. Treads 3670 | -8/Materials | Repaired Imp. Treads 3670 | -8/Materials | Core integrity fell below 50% 3676 | -8/Materials | Core integrity fell below 20% 3679 | -8/Materials | Destroyed by H-61 Shepherd with Heavy Assault Cannon Last Messages --------------- 03663_ U-05 Engineer lays Concrete. 03665_ Slug penetrates Y-45 Defender. 03666_ U-05 Engineer lays Concrete. 03666_ Imp. Sensor Array destroyed. 03666_ Lgt. Angular Momentum Engine destroyed. 03666_ Critical hit (Blast). 03667_ U-05 Engineer lays Concrete. 03668_ Penetrated by Slug. 03670_ Repair station completes Imp. Treads repairs. 03671_ Hrd. Medium Armor Plating destroyed. 03671_ Penetrated by Slug. 03671_ Lgt. Treads destroyed. 03672_ Penetrated by Slug. 03675_ Dropped Lrg. Storage Unit. 03676_ Great Maul destroyed. 03676_ Dropped Imp. Treads. 03676_ Dropped Great Maul. 03677_ K-01 Serf destroyed. 03678_ Penetrated by Slug. 03679_ Hacking Suite destroyed. Map ----- +----------------------------------------------------+ | ?????????????????????????????????????????????????? | | ?????????????????????????????????????????????????? | | ?????????????????????????????????????????????????? | | ?????????????????????????????????????????????????? | | ?????????????????????????????????????????????????? | | ?????????????????????????????????????????????????? | | ?????????????????????????????????????????????????? | | ???????????????##+##?????????????????????????????? | | ???????######## ?????????????????????????????? | | ?####### ????????? ????????????????????? | | """ # ?????????? ????????????????????? | | """"" # ??????????? ????????????????????? | | """"" # #???????????? ????????????????????? | | """"" # #????????????# ;????????????????????? | | """ # #????????????# #????????????????????? | | * / #????????????# #????????????????????? | | ] # #????????????#H#????????????????????? | | ! # ############## ###??????????????????? | | # !%= #??????????????????? | | #??????????????????? | | """ #??????????????????? | | "R" ! #??????????????????? | | "=" #??????????????????? | | #??????????????????? | | !#??????????????????? | | @ =[*#??????????????????? | | % """ !]!#??????????????????? | | """ %!%Y! ???????????????? | | """ /]x ???????????? | | """ x #????????? | | ##;#### #????????? | | a#?##????#+###????????? | | """ g##????????? ?????????? | | %############### """ #?????????????????????? | | # ####### ! # """ #?????????????????????? | | # ####### != + """ % k#?????????????????????? | | #%%% % + ! # k/?????????????????????? | | #%############### a#?????????????????????? | | # #########?????? """ k??????????????????????? | | #=##????????????? """ k??????????????????????? | | #!##????????????? "??? ??????????????????????? | | #%##?????????????? "?????????????????????????????? | | ##?????????????????????????????????????????????? | | ##?????????????????????????????????????????????? | | ]]##?????????????????????????????????????????????? | | ##?????????????????????????????????????????????? | | ##?????????????????????????????????????????????? | | ##?????????????????????????????????????????????? | | ### ???????????????????????????????????????????? | | #+### ???????????????????????????????????????????? | +----------------------------------------------------+ Best States ------------- Heat Dissipation 31 Energy Generation 18 Energy Capacity 265 Matter Stores 300 Matter Capacity 300 Sight Range 16 Robot Scan Range 15 Terrain Scan Range 16 Terrain Scan Density 110 Armor Coverage 225 Evasion (%) 55 Recoil Reduction 3 Offensive Hacking 10 Item Schematics ----------------- None Robot Schematics ------------------ None Fabricated ------------ Nothing Alien Tech Used ----------------- None Achievements -------------- Batter Up Challenges ------------ None Game ------ Seed FocalReflectiveMagmablaster Manual? 0 Play Time 00:30:15 Cumulative 212.5 hours Start 2024.10.16 @ 22:10:23 End 2024.10.16 @ 23:03:05 Sessions 1 Manual Loads 0 Difficulty Rogue Special Mode None Game No. 331 Rogue 331 Adventurer 0 Explorer 0 Win Type - Total 0 Types 0/0/0/0/0/0/0/0/0 Lore% 31 Gallery% 54 Achievement% 41 Wizard Run 0 Options --------- Layout 0 ASCII 0 Keyboard 0 Movement Mouse Keybinds 0 Fullscreen 1 Font 18/SmallcapsGlow Map View 76x50 Zoom Use 0% Tactical HUD 1 Map Filters NONE Filters NONE Steam 1 RUN: d4f602fe-8a1f-43d9-b4f4-a71fb0fc3e41